[Event "Chess Festival Groningen 2023 | A"]
[Site "Groningen, Netherlands"]
[Date "2023.12.23"]
[Round "3.20"]
[White "Slagboom, Leandro"]
[Black "Keuning, Selwin"]
[Result "1/2-1/2"]
[TimeControl "90min/40moves + 30min + 30sec/move"]
[WhiteElo "2304"]
[BlackElo "2139"]

1. e4 {[%clk 01:30:57]} {[%emt 00:00:32]} c5 {[%clk 01:30:50]} {[%emt
00:00:12]} 2. Nf3 {[%clk 01:31:21]} Nc6 {[%clk 01:30:58]} {[%emt 00:00:20]} 3.
Bb5 {[%clk 01:31:23]} {[%emt 00:00:13]} g6 {[%clk 01:31:19]} {[%emt 00:00:09]}
4. O-O {[%clk 01:30:47]} {[%emt 00:01:35]} Bg7 {[%clk 01:31:33]} 5. Re1 {[%clk
01:30:39]} {[%emt 00:00:37]} Nf6 {[%clk 01:30:36]} {[%emt 00:01:07]} 6. Bxc6
{[%clk 01:30:47]} {[%emt 00:00:40]} dxc6 {[%clk 01:29:21]} {[%emt 00:01:26]} 7.
d3 {[%clk 01:29:52]} {[%emt 00:01:55]} O-O {[%clk 01:26:28]} {[%emt 00:02:54]}
8. h3 {[%clk 01:30:12]} {[%emt 00:00:32]} Nd7 {[%clk 01:23:26]} {[%emt
00:03:10]} 9. Nbd2 {[%clk 01:27:16]} {[%emt 00:03:27]} e5 {[%clk 01:22:25]}
{[%emt 00:02:19]} 10. a4 {[%clk 01:26:59]} b6 {[%clk 01:14:49]} {[%emt
00:08:06]} 11. a5 {[%clk 01:24:13]} {[%emt 00:03:25]} Ba6 {[%clk 01:11:53]}
{[%emt 00:03:37]} 12. b3 {[%clk 01:21:42]} {[%emt 00:03:08]} Qe7 {[%clk
01:06:37]} {[%emt 00:05:19]} 13. Qe2 {[%clk 01:11:36]} {[%emt 00:10:33]} Rfd8
{[%clk 01:03:59]} {[%emt 00:03:26]} 14. Bb2 {[%clk 01:08:07]} {[%emt 00:03:45]}
f6 {[%clk 01:01:42]} {[%emt 00:03:31]} 15. Nh2 {[%clk 01:03:33]} {[%emt
00:04:16]} Nf8 {[%clk 00:55:06]} {[%emt 00:07:07]} 16. axb6 {[%clk 00:49:14]}
{[%emt 00:14:53]} axb6 {[%clk 00:53:20]} {[%emt 00:02:12]} 17. Nc4 {[%clk
00:43:53]} {[%emt 00:06:14]} Qc7 {[%clk 00:48:46]} {[%emt 00:04:41]} 18. Ng4
{[%clk 00:40:29]} {[%emt 00:03:54]} Ne6 {[%clk 00:40:28]} {[%emt 00:08:46]} 19.
Bc3 {[%clk 00:27:51]} {[%emt 00:13:09]} Nd4 {[%clk 00:32:53]} {[%emt 00:08:05]}
20. Qd2 {[%clk 00:28:06]} {[%emt 00:00:52]} h5 {[%clk 00:25:04]} {[%emt
00:07:42]} 21. Nge3 {[%clk 00:26:44]} {[%emt 00:01:52]} Bh6 {[%clk 00:21:08]}
{[%emt 00:04:24]} 22. Qd1 {[%clk 00:26:42]} {[%emt 00:00:43]} Bb7 {[%clk
00:19:53]} {[%emt 00:01:54]} 23. Qb1 {[%clk 00:21:15]} {[%emt 00:05:59]} Rxa1
{[%clk 00:16:24]} {[%emt 00:04:11]} 24. Bxa1 {[%clk 00:21:38]} b5 {[%clk
00:15:05]} {[%emt 00:01:22]} 25. Nd2 {[%clk 00:21:00]} {[%emt 00:01:46]} Qa5
{[%clk 00:12:57]} {[%emt 00:02:36]} 26. c3 {[%clk 00:19:48]} {[%emt 00:01:06]}
Ne6 {[%clk 00:12:52]} {[%emt 00:00:35]} 27. Nf3 {[%clk 00:19:56]} {[%emt
00:00:21]} Qa7 {[%clk 00:07:34]} {[%emt 00:05:48]} 28. Rd1 {[%clk 00:18:33]}
{[%emt 00:01:54]} Bg7 {[%clk 00:07:13]} {[%emt 00:00:57]} 29. Bb2 {[%clk
00:18:13]} {[%emt 00:00:44]} Ra8 {[%clk 00:05:39]} {[%emt 00:02:13]} 30. Qc2
{[%clk 00:17:40]} {[%emt 00:00:54]} Rd8 {[%clk 00:04:13]} {[%emt 00:01:56]} 31.
Rd2 {[%clk 00:13:46]} {[%emt 00:04:47]} Kh7 {[%clk 00:02:53]} {[%emt 00:02:02]}
32. Qd1 {[%clk 00:13:47]} {[%emt 00:00:18]} Bc8 {[%clk 00:02:31]} {[%emt
00:00:48]} 33. Kh2 {[%clk 00:13:48]} {[%emt 00:00:14]} Qc7 {[%clk 00:02:22]}
{[%emt 00:01:11]} 34. g3 {[%clk 00:13:02]} {[%emt 00:00:38]} Rd6 {[%clk
00:01:51]} {[%emt 00:01:01]} 35. Qf1 {[%clk 00:12:25]} {[%emt 00:01:10]} Qd8
{[%clk 00:01:43]} {[%emt 00:00:36]} 36. Rd1 {[%clk 00:11:55]} {[%emt 00:01:21]}
Rd7 {[%clk 00:01:17]} {[%emt 00:00:35]} 37. Nh4 {[%clk 00:11:34]} {[%emt
00:00:50]} Bh6 {[%clk 00:00:46]} {[%emt 00:01:00]} 38. Nhg2 {[%clk 00:09:53]}
{[%emt 00:02:17]} Ra7 {[%clk 00:00:48]} {[%emt 00:00:26]} 39. h4 {[%clk
00:09:10]} {[%emt 00:01:11]} Qd7 {[%clk 00:00:41]} {[%emt 00:00:48]} 40. Rd2
{[%clk 00:07:46]} {[%emt 00:01:48]} Qd8 {[%clk 00:00:37]} {[%emt 00:00:30]} 41.
Qd1 {[%clk 00:06:32]} {[%emt 00:01:42]} Rd7 {[%clk 00:27:08]} {[%emt 00:04:11]}
42. Qe2 {[%clk 00:34:32]} {[%emt 00:02:18]} Qc7 {[%clk 00:22:41]} {[%emt
00:04:56]} 43. Ne1 {[%clk 00:33:41]} {[%emt 00:01:21]} Qa5 {[%clk 00:18:01]}
{[%emt 00:05:10]} 44. Qd1 {[%clk 00:30:50]} {[%emt 00:03:21]} Qd8 {[%clk
00:17:55]} {[%emt 00:00:39]} 45. Nf3 {[%clk 00:29:06]} {[%emt 00:02:33]} Rd6
{[%clk 00:14:31]} {[%emt 00:03:32]} 46. Kg1 {[%clk 00:24:55]} {[%emt 00:04:43]}
Rd7 {[%clk 00:12:38]} {[%emt 00:02:35]} 47. Qc2 {[%clk 00:24:13]} {[%emt
00:00:58]} Rd6 {[%clk 00:08:32]} {[%emt 00:04:38]} 48. Rd1 {[%clk 00:23:47]}
{[%emt 00:01:29]} Bg7 {[%clk 00:06:34]} {[%emt 00:01:51]} 49. Kf1 {[%clk
00:23:34]} {[%emt 00:00:45]} Bh6 {[%clk 00:05:43]} {[%emt 00:01:20]} 50. Ke2
{[%clk 00:23:08]} {[%emt 00:00:56]} Rd7 {[%clk 00:05:35]} {[%emt 00:00:41]} 51.
Ra1 {[%clk 00:22:30]} {[%emt 00:01:04]} Qb6 {[%clk 00:05:33]} {[%emt 00:00:47]}
52. Rf1 {[%clk 00:20:41]} {[%emt 00:02:06]} Qc7 {[%clk 00:04:43]} {[%emt
00:01:18]} 53. Rd1 {[%clk 00:18:08]} {[%emt 00:03:05]} Qd8 {[%clk 00:05:09]}
{[%emt 00:00:04]} 54. Bc1 {[%clk 00:15:08]} {[%emt 00:03:30]} Bg7 {[%clk
00:04:09]} {[%emt 00:01:43]} 55. Qa2 {[%clk 00:14:41]} {[%emt 00:01:04]} Qb6
{[%clk 00:03:47]} {[%emt 00:00:29]} 56. Ng2 {[%clk 00:13:11]} {[%emt 00:02:00]}
Ra7 {[%clk 00:03:38]} {[%emt 00:00:40]} 57. Qb1 {[%clk 00:12:55]} {[%emt
00:00:46]} Rd7 {[%clk 00:01:42]} {[%emt 00:02:26]} 58. Be3 {[%clk 00:13:05]}
{[%emt 00:01:02]} b4 {[%clk 00:01:06]} {[%emt 00:00:23]} 59. cxb4 {[%clk
00:11:18]} {[%emt 00:02:21]} Qxb4 {[%clk 00:01:21]} {[%emt 00:00:11]} 60. Nd2
{[%clk 00:11:05]} {[%emt 00:00:43]} Ba6 {[%clk 00:00:38]} {[%emt 00:01:13]} 61.
Ne1 {[%clk 00:10:32]} {[%emt 00:01:02]} Nd4+ {[%clk 00:00:41]} {[%emt
00:00:27]} 62. Bxd4 {[%clk 00:09:46]} {[%emt 00:01:20]} cxd4 {[%clk 00:00:53]}
{[%emt 00:00:18]} 63. Qc2 {[%clk 00:09:37]} {[%emt 00:00:35]} Rc7 {[%clk
00:00:42]} {[%emt 00:01:03]} 64. Rb1 {[%clk 00:07:21]} {[%emt 00:03:00]} Bh6
{[%clk 00:00:56]} 65. Nc4 {[%clk 00:07:13]} {[%emt 00:00:18]} Bc8 {[%clk
00:00:42]} {[%emt 00:00:45]} 66. Kf1 {[%clk 00:06:58]} {[%emt 00:00:45]} Be6
{[%clk 00:00:57]} {[%emt 00:00:45]} 67. Qa2 {[%clk 00:05:48]} {[%emt 00:01:09]}
Qb8 {[%clk 00:00:46]} {[%emt 00:00:42]} 68. b4 {[%clk 00:05:04]} {[%emt
00:01:51]} Bf8 {[%clk 00:00:50]} 69. Nc2 {[%clk 00:05:00]} {[%emt 00:00:23]}
Ra7 {[%clk 00:01:05]} {[%emt 00:00:16]} 70. Qb3 {[%clk 00:05:13]} {[%emt
00:00:17]} Qb5 {[%clk 00:01:05]} {[%emt 00:00:54]} 71. N2a3 {[%clk 00:04:57]}
{[%emt 00:00:22]} 1/2-1/2

[Event "Chess Festival Groningen 2023 | A"]
[Site "Groningen, Netherlands"]
[Date "2023.12.23"]
[Round "3.21"]
[White "Van Der Leest, Bert"]
[Black "De Jong, Migchiel"]
[Result "0-1"]
[TimeControl "90min/40moves + 30min + 30sec/move"]
[WhiteFideId "1009460"]
[WhiteElo "2142"]
[BlackElo "2301"]

1. e4 {[%clk 01:30:58]} {[%emt 00:00:04]} c5 {[%clk 01:30:28]} {[%emt
00:00:24]} 2. Nf3 {[%clk 01:31:16]} {[%emt 00:00:39]} e6 {[%clk 01:30:40]}
{[%emt 00:00:13]} 3. d4 {[%clk 01:31:33]} cxd4 {[%clk 01:31:03]} {[%emt
00:00:08]} 4. Nxd4 {[%clk 01:31:57]} a6 {[%clk 01:31:20]} {[%emt 00:00:12]} 5.
Nc3 {[%clk 01:31:17]} {[%emt 00:01:19]} d6 {[%clk 01:27:44]} {[%emt 00:03:53]}
6. Bc4 {[%clk 01:31:29]} {[%emt 00:00:19]} b5 {[%clk 01:27:19]} {[%emt
00:00:54]} 7. Bb3 {[%clk 01:31:44]} {[%emt 00:00:26]} Nf6 {[%clk 01:27:06]}
{[%emt 00:00:33]} 8. O-O {[%clk 01:31:45]} {[%emt 00:00:27]} Be7 {[%clk
01:26:26]} {[%emt 00:01:11]} 9. f4 {[%clk 01:31:42]} {[%emt 00:00:49]} O-O
{[%clk 01:25:58]} {[%emt 00:00:42]} 10. e5 {[%clk 01:29:25]} {[%emt 00:02:49]}
dxe5 {[%clk 01:26:13]} {[%emt 00:00:12]} 11. fxe5 {[%clk 01:29:50]} {[%emt
00:00:43]} Nfd7 {[%clk 01:26:33]} 12. Be3 {[%clk 01:19:40]} {[%emt 00:10:13]}
Nxe5 {[%clk 01:25:09]} {[%emt 00:01:54]} 13. Qh5 {[%clk 01:13:26]} {[%emt
00:06:44]} Nbc6 {[%clk 01:23:57]} {[%emt 00:01:45]} 14. Rad1 {[%clk 01:10:57]}
{[%emt 00:02:57]} Qc7 {[%clk 01:21:41]} {[%emt 00:02:47]} 15. Ne4 {[%clk
01:08:47]} {[%emt 00:02:40]} Nc4 {[%clk 01:15:28]} {[%emt 00:06:40]} 16. Bxc4
{[%clk 00:56:56]} {[%emt 00:12:21]} bxc4 {[%clk 01:15:42]} {[%emt 00:00:15]} 17.
Ng5 {[%clk 00:41:20]} {[%emt 00:16:09]} Bxg5 {[%clk 01:15:24]} {[%emt
00:00:47]} 18. Qxg5 {[%clk 00:41:35]} {[%emt 00:00:40]} Bb7 {[%clk 01:10:45]}
{[%emt 00:04:43]} 19. Qc5 {[%clk 00:22:44]} {[%emt 00:19:21]} Rac8 {[%clk
01:09:34]} {[%emt 00:01:41]} 20. Nxc6 {[%clk 00:17:32]} {[%emt 00:05:51]} Qxc6
{[%clk 01:08:11]} {[%emt 00:01:44]} 21. Qxc6 {[%clk 00:17:51]} {[%emt
00:00:23]} Bxc6 {[%clk 01:08:34]} 22. Rd6 {[%clk 00:17:19]} {[%emt 00:00:57]}
a5 {[%clk 01:07:20]} {[%emt 00:01:45]} 23. Rf4 {[%clk 00:11:50]} {[%emt
00:05:58]} Bd5 {[%clk 01:07:06]} {[%emt 00:00:43]} 24. a4 {[%clk 00:10:49]}
{[%emt 00:01:32]} Rfd8 {[%clk 01:04:55]} {[%emt 00:02:40]} 25. Rxd8+ {[%clk
00:09:22]} {[%emt 00:01:58]} Rxd8 {[%clk 01:05:17]} {[%emt 00:00:32]} 26. Rd4
{[%clk 00:09:35]} {[%emt 00:00:08]} Rb8 {[%clk 01:02:03]} {[%emt 00:03:28]} 27.
b3 {[%clk 00:07:27]} {[%emt 00:02:38]} cxb3 {[%clk 01:02:15]} {[%emt 00:00:17]}
28. cxb3 {[%clk 00:07:51]} {[%emt 00:00:11]} Rxb3 {[%clk 01:02:34]} {[%emt
00:00:09]} 29. Bd2 {[%clk 00:07:42]} {[%emt 00:00:37]} Rb2 {[%clk 01:02:37]}
{[%emt 00:00:40]} 30. g4 {[%clk 00:07:25]} {[%emt 00:00:33]} f6 {[%clk
01:00:28]} {[%emt 00:02:46]} 31. h4 {[%clk 00:05:39]} {[%emt 00:02:41]} Ra2
{[%clk 00:56:35]} {[%emt 00:03:54]} 32. Bxa5 {[%clk 00:05:02]} {[%emt
00:01:05]} Bc6 {[%clk 00:56:43]} {[%emt 00:00:48]} 33. h5 {[%clk 00:04:33]}
{[%emt 00:00:43]} e5 {[%clk 00:56:26]} {[%emt 00:01:06]} 34. Rc4 {[%clk
00:03:38]} {[%emt 00:00:56]} Rxa4 {[%clk 00:55:33]} {[%emt 00:01:27]} 35. Rxa4
{[%clk 00:03:53]} {[%emt 00:00:11]} Bxa4 {[%clk 00:55:57]} {[%emt 00:00:09]} 36.
Kf2 {[%clk 00:04:16]} {[%emt 00:00:19]} Kf7 {[%clk 00:55:54]} {[%emt 00:00:17]}
37. Bb4 {[%clk 00:04:15]} {[%emt 00:00:49]} Bd1 {[%clk 00:55:56]} {[%emt
00:00:11]} 38. Kg3 {[%clk 00:04:38]} {[%emt 00:00:15]} Ke6 {[%clk 00:54:11]}
{[%emt 00:02:13]} 39. Bf8 {[%clk 00:04:13]} {[%emt 00:00:47]} g6 {[%clk
00:53:06]} {[%emt 00:01:35]} 40. hxg6 {[%clk 00:04:37]} {[%emt 00:00:33]} hxg6
{[%clk 00:53:32]} 41. Bb4 {[%clk 00:04:45]} {[%emt 00:00:14]} Kd5 {[%clk
00:53:50]} {[%emt 00:00:05]} 42. Be7 {[%clk 00:04:35]} {[%emt 00:00:53]} f5
{[%clk 00:54:08]} {[%emt 00:00:10]} 43. gxf5 {[%clk 00:04:59]} gxf5 {[%clk
00:54:34]} 44. Bd8 {[%clk 00:02:05]} {[%emt 00:03:19]} f4+ {[%clk 00:53:52]}
{[%emt 00:01:43]} 45. Kf2 {[%clk 00:02:29]} Bh5 {[%clk 00:53:43]} {[%emt
00:00:10]} 46. Bc7 {[%clk 00:02:02]} {[%emt 00:00:57]} Ke4 {[%clk 00:53:37]}
{[%emt 00:00:53]} 47. Bd6 {[%clk 00:29:13]} {[%emt 00:03:13]} Kf5 {[%clk
01:23:49]} {[%emt 00:00:09]} 48. Bc7 {[%clk 00:29:33]} {[%emt 00:00:08]} e4
{[%clk 01:24:06]} {[%emt 00:00:32]} 49. Bb6 {[%clk 00:29:54]} {[%emt 00:00:10]}
Ke6 {[%clk 01:24:27]} 50. Bd4 {[%clk 00:23:49]} {[%emt 00:06:26]} Kd5 {[%clk
01:24:47]} {[%emt 00:00:39]} 51. Bb6 {[%clk 00:24:10]} Kc4 {[%clk 01:24:53]}
{[%emt 00:00:10]} 52. Bc7 {[%clk 00:23:14]} {[%emt 00:01:17]} e3+ {[%clk
01:25:16]} {[%emt 00:00:10]} 53. Ke1 {[%clk 00:22:56]} {[%emt 00:00:45]} f3
{[%clk 01:25:39]} {[%emt 00:00:08]} 54. Bg3 {[%clk 00:20:52]} {[%emt 00:02:50]}
Kd3 {[%clk 01:25:51]} 55. Bh4 {[%clk 00:20:31]} {[%emt 00:00:52]} Bf7 {[%clk
01:25:41]} {[%emt 00:00:38]} 56. Bg3 {[%clk 00:19:31]} {[%emt 00:01:32]} Bc4
{[%clk 01:26:05]} {[%emt 00:00:35]} 57. Bh4 {[%clk 00:14:46]} {[%emt 00:04:45]}
Ke4 {[%emt 00:01:05]} 0-1

[Event "Chess Festival Groningen 2023 | A"]
[Site "Groningen, Netherlands"]
[Date "2023.12.23"]
[Round "3.22"]
[White "Jaiveer, Mahendru"]
[Black "Adamovics, Aleksejs"]
[Result "0-1"]
[TimeControl "90min/40moves + 30min + 30sec/move"]
[WhiteFideId "25611151"]
[WhiteElo "2294"]
[BlackElo "2015"]

1. e4 {[%clk 01:30:58]} c5 {[%clk 01:30:55]} {[%emt 00:00:10]} 2. Nf3 {[%clk
01:31:25]} Nc6 {[%clk 01:31:18]} {[%emt 00:00:05]} 3. d4 {[%clk 01:31:53]}
{[%emt 00:00:05]} cxd4 {[%clk 01:31:41]} {[%emt 00:00:13]} 4. Nxd4 {[%clk
01:32:21]} Nf6 {[%clk 01:32:02]} 5. Nc3 {[%clk 01:30:57]} {[%emt 00:01:53]} e5
{[%clk 01:32:22]} {[%emt 00:00:13]} 6. Ndb5 {[%clk 01:31:19]} {[%emt 00:00:06]}
d6 {[%clk 01:32:41]} {[%emt 00:00:11]} 7. Bg5 {[%clk 01:31:29]} {[%emt
00:00:24]} a6 {[%clk 01:32:58]} {[%emt 00:00:08]} 8. Na3 {[%clk 01:31:55]}
{[%emt 00:00:06]} b5 {[%clk 01:33:18]} {[%emt 00:00:09]} 9. Nd5 {[%clk
01:32:17]} {[%emt 00:00:08]} Be7 {[%clk 01:33:40]} {[%emt 00:00:11]} 10. Bxf6
{[%clk 01:32:41]} {[%emt 00:00:05]} Bxf6 {[%clk 01:34:08]} 11. c4 {[%clk
01:33:01]} {[%emt 00:00:24]} b4 {[%clk 01:34:31]} 12. Nc2 {[%clk 01:33:29]} O-O
{[%clk 01:34:54]} {[%emt 00:00:04]} 13. Be2 {[%clk 01:33:55]} {[%emt 00:00:04]}
a5 {[%clk 01:34:15]} {[%emt 00:01:15]} 14. O-O {[%clk 01:33:55]} {[%emt
00:00:28]} Bg5 {[%clk 01:34:36]} {[%emt 00:00:04]} 15. Qd3 {[%clk 01:30:28]}
{[%emt 00:03:56]} Be6 {[%clk 01:33:54]} {[%emt 00:01:15]} 16. a3 {[%clk
01:17:16]} {[%emt 00:13:39]} bxa3 {[%clk 01:27:12]} {[%emt 00:07:11]} 17. Nxa3
{[%clk 01:08:41]} {[%emt 00:09:05]} Nd4 {[%clk 01:12:04]} {[%emt 00:15:37]} 18.
Nb5 {[%clk 01:03:27]} {[%emt 00:05:47]} Bxd5 {[%clk 01:07:31]} {[%emt
00:05:01]} 19. exd5 {[%clk 01:03:49]} {[%emt 00:00:07]} Bf6 {[%clk 01:01:43]}
{[%emt 00:06:23]} 20. Nxd4 {[%clk 00:50:12]} {[%emt 00:14:03]} exd4 {[%clk
01:02:11]} {[%emt 00:00:05]} 21. Bd1 {[%clk 00:50:25]} {[%emt 00:00:14]} Re8
{[%clk 00:52:41]} {[%emt 00:10:05]} 22. Ba4 {[%clk 00:49:20]} {[%emt 00:01:33]}
Re7 {[%clk 00:51:14]} {[%emt 00:01:57]} 23. Ra3 {[%clk 00:48:45]} {[%emt
00:01:01]} Qb6 {[%clk 00:47:56]} {[%emt 00:03:48]} 24. Bc6 {[%clk 00:44:19]}
{[%emt 00:04:55]} Rb8 {[%clk 00:45:09]} {[%emt 00:03:17]} 25. Bb5 {[%clk
00:43:29]} {[%emt 00:01:20]} Ra8 {[%clk 00:39:58]} {[%emt 00:05:41]} 26. Bc6
{[%clk 00:43:35]} {[%emt 00:00:23]} Rb8 {[%clk 00:38:27]} {[%emt 00:02:11]} 27.
Bb5 {[%clk 00:44:04]} Ra8 {[%clk 00:38:48]} {[%emt 00:00:18]} 28. Qd2 {[%clk
00:31:52]} {[%emt 00:12:25]} Rea7 {[%clk 00:33:32]} {[%emt 00:05:45]} 29. Re1
{[%clk 00:19:53]} {[%emt 00:12:29]} Re7 {[%clk 00:23:16]} {[%emt 00:10:46]} 30.
Rxe7 {[%clk 00:04:08]} {[%emt 00:19:20]} Bxe7 {[%clk 00:23:40]} 31. b4 {[%clk
00:04:24]} Bd8 {[%clk 00:17:33]} {[%emt 00:03:51]} 32. Qe1 {[%clk 00:04:39]}
{[%emt 00:00:20]} g6 {[%clk 00:12:42]} {[%emt 00:05:17]} 33. g4 {[%clk
00:04:59]} {[%emt 00:00:09]} Qc7 {[%clk 00:09:39]} {[%emt 00:03:41]} 34. Bc6
{[%emt 00:04:34]} Ra7 {[%clk 00:09:05]} {[%emt 00:01:07]} 35. Qe8+ {[%clk
00:00:35]} {[%emt 00:00:39]} Kg7 {[%clk 00:09:30]} {[%emt 00:00:14]} 36. Qe4
{[%clk 00:01:03]} Qb6 {[%clk 00:06:51]} {[%emt 00:03:04]} 37. b5 {[%emt
00:01:00]} Re7 {[%clk 00:06:53]} {[%emt 00:00:22]} 38. Qf4 {[%clk 00:00:51]}
{[%emt 00:00:16]} Qc5 {[%clk 00:06:41]} {[%emt 00:00:41]} 39. Rh3 {[%clk
00:00:56]} {[%emt 00:00:35]} f6 {[%clk 00:05:17]} {[%emt 00:01:45]} 40. Qc1
{[%clk 00:00:31]} {[%emt 00:00:55]} Qb4 {[%clk 00:02:36]} {[%emt 00:03:11]} 41.
Kf1 {[%clk 00:16:11]} {[%emt 00:14:50]} a4 {[%clk 00:24:02]} {[%emt 00:09:13]}
42. Kg2 {[%clk 00:13:51]} {[%emt 00:02:39]} Bb6 {[%clk 00:19:00]} {[%emt
00:05:38]} 43. Be8 {[%clk 00:12:50]} {[%emt 00:01:37]} Kg8 {[%clk 00:13:26]}
{[%emt 00:05:58]} 44. Bxg6 {[%clk 00:03:33]} {[%emt 00:09:42]} hxg6 {[%clk
00:13:17]} {[%emt 00:00:42]} 45. Qh6 {[%clk 00:04:00]} {[%emt 00:00:04]} Rg7
{[%clk 00:12:07]} {[%emt 00:01:39]} 46. Qh8+ {[%clk 00:04:27]} Kf7 {[%clk
00:12:36]} 47. Qc8 {[%clk 00:04:28]} {[%emt 00:00:30]} Qe1 {[%clk 00:11:07]}
{[%emt 00:02:46]} 48. Rh8 {[%clk 00:04:46]} Qe4+ {[%clk 00:08:54]} {[%emt
00:02:08]} 49. Kg3 {[%clk 00:05:10]} {[%emt 00:00:06]} g5 {[%clk 00:06:38]}
{[%emt 00:02:45]} 50. Qb7+ {[%clk 00:00:35]} {[%emt 00:05:08]} Kg6 {[%clk
00:06:37]} {[%emt 00:00:36]} 51. Qxb6 {[%clk 00:00:56]} {[%emt 00:00:05]} d3
{[%clk 00:05:50]} {[%emt 00:01:14]} 52. f3 {[%clk 00:00:34]} {[%emt 00:00:51]}
Qe5+ {[%clk 00:05:53]} {[%emt 00:00:26]} 53. Kg2 {[%clk 00:00:32]} {[%emt
00:00:36]} d2 {[%clk 00:05:54]} {[%emt 00:00:26]} 54. h4 {[%clk 00:00:31]}
{[%emt 00:00:36]} d1=Q {[%clk 00:05:06]} {[%emt 00:01:21]} 0-1

[Event "Chess Festival Groningen 2023 | A"]
[Site "Groningen, Netherlands"]
[Date "2023.12.23"]
[Round "3.23"]
[White "Kazarjan, Gachatur"]
[Black "Lambrechts, Koen"]
[Result "0-1"]
[TimeControl "90min/40moves + 30min + 30sec/move"]
[WhiteElo "2078"]
[BlackElo "2290"]

1. e4 {[%clk 01:30:58]} {[%emt 00:00:29]} d5 {[%clk 01:28:25]} {[%emt
00:02:12]} 2. exd5 {[%clk 01:31:12]} {[%emt 00:00:13]} Qxd5 {[%clk 01:28:49]}
{[%emt 00:00:42]} 3. Nc3 {[%clk 01:31:06]} {[%emt 00:00:16]} Qd8 {[%clk
01:29:12]} 4. d4 {[%clk 01:30:45]} {[%emt 00:00:43]} Nf6 {[%clk 01:29:16]}
{[%emt 00:00:43]} 5. Bc4 {[%clk 01:30:00]} {[%emt 00:00:56]} c6 {[%clk
01:16:49]} {[%emt 00:12:58]} 6. a4 {[%clk 01:27:00]} {[%emt 00:03:50]} Bg4
{[%clk 01:14:14]} {[%emt 00:02:44]} 7. f3 {[%clk 01:21:57]} {[%emt 00:05:33]}
Bf5 {[%clk 01:11:42]} {[%emt 00:03:01]} 8. g4 {[%clk 01:16:25]} {[%emt
00:06:08]} Bg6 {[%clk 01:10:50]} {[%emt 00:01:18]} 9. h4 {[%clk 01:16:35]}
{[%emt 00:00:23]} h5 {[%clk 01:10:10]} {[%emt 00:01:37]} 10. g5 {[%clk
01:15:50]} {[%emt 00:01:06]} Nd5 {[%clk 01:10:13]} {[%emt 00:00:09]} 11. Nxd5
{[%clk 01:15:41]} {[%emt 00:00:36]} cxd5 {[%clk 01:10:34]} {[%emt 00:00:13]} 12.
Bd3 {[%clk 01:15:42]} {[%emt 00:00:22]} Bxd3 {[%clk 01:10:18]} {[%emt
00:00:52]} 13. Qxd3 {[%clk 01:16:05]} {[%emt 00:00:04]} g6 {[%clk 01:10:42]}
{[%emt 00:00:17]} 14. Ne2 {[%clk 01:15:29]} {[%emt 00:00:52]} Bg7 {[%clk
00:54:20]} {[%emt 00:17:19]} 15. Nf4 {[%clk 01:05:07]} {[%emt 00:10:41]} O-O
{[%clk 00:50:38]} {[%emt 00:03:55]} 16. Be3 {[%clk 00:37:42]} {[%emt 00:27:56]}
Nc6 {[%clk 00:43:45]} {[%emt 00:07:25]} 17. O-O-O {[%clk 00:33:15]} {[%emt
00:04:56]} Qd6 {[%clk 00:42:38]} {[%emt 00:01:38]} 18. Ne2 {[%clk 00:25:24]}
{[%emt 00:08:17]} a6 {[%clk 00:31:08]} {[%emt 00:12:21]} 19. Nc3 {[%clk
00:18:12]} {[%emt 00:07:21]} Rfc8 {[%clk 00:29:00]} {[%emt 00:02:38]} 20. Kd2
{[%clk 00:14:44]} {[%emt 00:04:01]} e5 {[%clk 00:16:08]} {[%emt 00:13:26]} 21.
dxe5 {[%clk 00:13:54]} {[%emt 00:01:50]} Nxe5 {[%clk 00:16:32]} 22. Qxd5 {[%clk
00:13:13]} {[%emt 00:00:40]} Qb4 {[%clk 00:16:36]} {[%emt 00:00:39]} 23. Ke2
{[%clk 00:12:43]} {[%emt 00:01:22]} Qxb2 {[%clk 00:15:19]} {[%emt 00:01:15]} 24.
Ne4 {[%clk 00:12:33]} {[%emt 00:01:26]} Rxc2+ {[%clk 00:14:15]} {[%emt
00:00:43]} 25. Rd2 {[%clk 00:12:53]} {[%emt 00:00:33]} Nc4 {[%clk 00:13:45]}
{[%emt 00:00:37]} 26. Rxc2 {[%clk 00:12:08]} {[%emt 00:01:28]} Qxc2+ {[%clk
00:14:01]} {[%emt 00:00:19]} 27. Bd2 {[%clk 00:12:29]} Nxd2 {[%clk 00:14:04]}
{[%emt 00:00:19]} 28. Qxd2 {[%clk 00:11:58]} {[%emt 00:01:03]} Qxa4 {[%clk
00:13:42]} {[%emt 00:00:50]} 29. Rb1 {[%clk 00:11:26]} {[%emt 00:01:02]} Qc4+
{[%clk 00:13:42]} {[%emt 00:00:33]} 30. Kf2 {[%clk 00:11:49]} {[%emt 00:00:09]}
Qd4+ {[%clk 00:13:46]} {[%emt 00:00:20]} 0-1